bitfinex/quotes_ETHUSD_20241122
["timestamp","ask_amount","ask_price","bid_price","bid_amount"]
[1732258481863,3.48206928,3367.3,3366.6,1.0979]
[1732258482066,0.27674702,3367.2,3366.6,1.0979]
[1732258482268,0.27674702,3367.1,3366.6,1.0979]
[1732258482567,0.27674702,3367.0,3366.6,1.0979]
[1732258482765,0.27674702,3367.1,3366.6,1.0979]
[1732258482979,0.27674702,3367.0,3366.6,1.0979]
[1732258483185,4.5135163,3367.0,3366.7,0.2963]
[1732258483399,0.27674702,3366.9,3366.7,0.2963]
[1732258483890,3.7588163,3367.2,3366.7,0.2963]
[1732258484096,0.27674702,3367.1,3366.7,0.2963]
[1732258484389,0.27674702,3367.0,3366.5,0.2963]
[1732258484563,0.27674702,3366.9,3366.5,0.2963]
[1732258484763,0.42367693,3367.1,3366.5,0.2963]
[1732258484764,0.27674702,3366.8,3366.5,0.2963]
[1732258484982,0.27674702,3366.7,3366.5,0.2963]
[1732258485209,0.27674702,3366.6,3366.5,0.2963]
[1732258485509,0.27674702,3366.9,3366.5,0.2963]
[1732258485719,0.27674702,3366.8,3366.5,0.2963]
[1732258485918,0.46604462,3367.0,3366.5,0.2963]
[1732258486209,0.27680679,3366.9,3366.5,0.2963]
[1732258486508,0.27680679,3366.8,3366.5,0.2963]
[1732258486676,0.27680679,3366.7,3366.5,0.2963]
[1732258486875,0.27680679,3366.6,3366.5,0.2963]
[1732258487415,0.27685505,3366.6,3366.5,0.2963]
[1732258487780,1.64834069,3366.9,3366.5,0.2963]
[1732258487980,0.27682579,3366.8,3366.5,0.2963]
[1732258488288,0.27682579,3366.7,3366.5,0.2963]
[1732258488634,0.27682579,3366.6,3366.5,0.2963]
[1732258490981,1.64834069,3366.9,3366.5,0.2963]
[1732258491175,0.27675905,3366.8,3366.5,0.2963]
[1732258492309,0.46926902,3366.8,3366.5,0.2963]
[1732258492511,0.27675905,3366.7,3366.5,0.2963]
[1732258492717,0.27675905,3366.6,3366.5,0.2963]
[1732258494695,1.92509974,3366.6,3366.5,0.2963]
[1732258494892,2.35791378,3366.6,3366.5,0.2963]
[1732258495818,2.35791378,3366.6,3365.9,0.2963]
[1732258496164,1.64834069,3366.0,3365.9,0.2963]
[1732258496423,1.92509974,3366.0,3365.9,0.2963]
[1732258496829,1.92509974,3366.0,3365.6,0.2963]
[1732258497128,1.64834069,3366.2,3365.6,0.2963]
[1732258497419,0.27637951,3366.1,3365.6,0.2963]
[1732258497809,1.64834069,3366.2,3365.6,0.2963]
[1732258498022,1.64834069,3365.8,3365.6,0.2963]
[1732258498330,0.16483407,3365.8,3365.6,0.2963]
[1732258498628,1.64834069,3366.0,3365.6,0.2963]
[1732258498827,0.27647202,3365.9,3365.6,0.2963]
[1732258499195,1.64834069,3366.0,3365.6,0.2963]
[1732258501115,2.40304069,3366.2,3365.6,0.2963]
[1732258501301,0.27637566,3366.1,3365.6,0.2963]
[1732258502729,1.64834069,3366.2,3365.4,0.2963]
[1732258502932,1.64834069,3366.2,3365.6,0.2963]
[1732258503133,1.64834069,3366.4,3365.6,0.2963]
[1732258503337,0.27622661,3366.3,3365.6,0.2963]
[1732258503631,0.27622661,3366.3,3365.8,0.2963]
[1732258504360,2.43024069,3366.9,3366.0,0.2963]
[1732258504568,1.64834069,3366.7,3366.2,0.2963]
[1732258504926,1.64834069,3366.5,3366.2,0.2963]
[1732258505127,0.16483407,3366.4,3366.2,0.2963]
[1732258505426,0.16483407,3366.4,3365.0,0.029707]
[1732258505427,1.64834069,3366.3,3365.0,0.326007]
[1732258505633,1.64834069,3366.3,3364.9,3.33257813]
[1732258505634,0.7819,3366.7,3365.9,0.2963]
[1732258505854,1.64834069,3366.2,3365.9,0.2963]
[1732258506527,1.64834069,3366.4,3365.9,0.2963]
[1732258506934,1.64834069,3366.6,3366.1,0.2963]
[1732258507138,0.7819,3367.0,3366.1,0.2963]
[1732258507139,0.27624196,3366.5,3366.1,0.2963]
[1732258507480,1.64834069,3366.8,3366.1,0.2963]
[1732258507775,0.27624324,3366.7,3366.3,0.2963]
[1732258508531,0.46870163,3366.7,3366.3,0.2963]
[1732258508740,0.7819,3367.2,3366.3,0.2963]
[1732258508940,1.64834069,3366.7,3366.3,0.2963]
[1732258509153,0.7819,3367.2,3366.3,0.2963]
[1732258509375,1.64834069,3366.8,3366.3,0.2963]
[1732258509674,0.27622072,3366.7,3366.3,0.2963]
[1732258510070,1.64834069,3366.6,3366.3,0.2963]
[1732258510366,0.27622072,3366.5,3366.3,0.2963]
[1732258510573,1.64834069,3366.6,3366.3,0.2963]
[1732258511171,1.64834069,3366.4,3366.3,0.2963]
[1732258511571,1.92456421,3366.4,3366.3,0.2963]
[1732258511751,1.92456421,3366.4,3365.8,0.2963]
[1732258511952,0.24302407,3366.6,3365.8,0.2963]
[1732258511953,1.64834069,3366.0,3365.8,0.2963]
[1732258512654,0.8244,3366.3,3365.8,0.2963]
[1732258512854,0.2761901,3366.2,3365.8,0.2963]
[1732258514485,4.3081686,3366.7,3365.8,0.2963]
[1732258514654,0.70704435,3366.6,3365.8,0.2963]
[1732258514859,0.27622749,3366.5,3365.8,0.2963]
[1732258521739,0.27622749,3366.4,3365.8,0.2963]
[1732258521942,0.27622749,3366.3,3365.8,0.2963]
[1732258522235,0.27622749,3366.2,3365.8,0.2963]
[1732258522439,0.27622749,3366.1,3365.8,0.2963]
[1732258522659,0.47389855,3366.5,3365.8,0.2963]
[1732258522859,0.27671399,3366.4,3365.8,0.2963]
[1732258524444,0.27671399,3366.4,3365.1,0.2963]
[1732258524648,0.27671399,3366.4,3366.0,0.2963]
[1732258524962,0.27671399,3366.3,3366.0,0.2963]
[1732258525138,0.27671399,3366.2,3366.0,0.2963]
[1732258525337,0.27671399,3366.1,3366.0,0.2963]
[1732258526439,4.73898546,3366.7,3366.0,0.2963]
[1732258526742,0.27710111,3366.6,3366.0,0.2963]
[1732258527069,0.27710111,3366.5,3366.0,0.2963]
[1732258527359,0.27710111,3366.4,3366.0,0.2963]
[1732258527556,0.27710111,3366.3,3366.0,0.2963]
[1732258527760,0.27710111,3366.2,3366.0,0.2963]
[1732258527960,0.50160866,3366.6,3366.0,0.2963]
[1732258528262,0.27709362,3366.5,3366.0,0.2963]
[1732258528447,0.27709362,3366.4,3366.0,0.2963]
[1732258529533,0.27709362,3366.6,3366.1,1.1223]
[1732258529731,0.27715644,3366.5,3366.1,1.1223]
[1732258529932,0.8056,3367.1,3366.1,1.1223]
[1732258530123,0.27717018,3367.0,3366.1,1.1223]
[1732258530325,0.27717018,3367.0,3365.2,0.02970683]
[1732258530326,0.27717018,3366.9,3366.3,0.2963]
[1732258530628,3.8056,3367.4,3366.5,0.2963]
[1732258530629,0.27717018,3366.8,3366.5,0.2963]
[1732258530824,0.27717018,3366.7,3366.5,0.2963]
[1732258531024,0.27717018,3366.6,3366.5,0.2963]
[1732258531224,3.4837686,3367.2,3366.5,0.2963]
[1732258531461,0.7789927,3367.1,3366.5,0.2963]
[1732258531629,0.27716215,3367.0,3366.5,0.2963]
[1732258531823,0.27716215,3366.9,3366.5,0.2963]
[1732258532134,0.27716215,3366.8,3366.5,0.2963]
[1732258532345,0.27716215,3366.7,3366.5,0.2963]
[1732258532547,3.98559915,3367.2,3366.5,0.2963]
[1732258532866,0.27711572,3367.1,3366.7,1.1223]
[1732258533074,0.27711572,3367.5,3367.1,0.2963]
[1732258533276,0.27697703,3367.4,3367.1,0.2963]
[1732258533445,3.4837686,3367.8,3367.1,0.2963]
[1732258533446,0.8056,3367.6,3367.1,0.2963]
[1732258533804,3.76074563,3367.5,3367.1,0.2963]
[1732258533929,0.27697703,3367.4,3367.1,0.2963]
[1732258534124,0.73361159,3367.3,3367.1,0.2963]
[1732258534367,0.27674668,3367.2,3367.1,0.2963]
[1732258534660,1.92502918,3367.2,3367.1,0.2963]
[1732258535527,1.92502918,3367.2,3366.9,0.2963]
[1732258535726,1.6482825,3367.2,3366.9,0.2963]
[1732258535962,0.27666092,3367.1,3366.9,0.2963]
[1732258536164,1.6482825,3367.4,3366.9,0.2963]
[1732258536481,1.6482825,3367.4,3365.7,0.36228094]
[1732258536482,1.6482825,3367.6,3367.1,0.2963]
[1732258536644,0.27659611,3367.5,3367.1,0.2963]
[1732258537229,1.6482825,3367.4,3367.1,0.2963]
[1732258537607,2.4538825,3367.2,3367.1,0.2963]
[1732258537770,2.73047861,3367.2,3367.1,0.2963]
[1732258537967,1.92487861,3367.2,3367.1,0.2963]
[1732258538165,2.19792647,3367.2,3367.1,0.2963]
[1732258538564,0.54964397,3367.2,3366.7,0.2963]
[1732258538778,1.6482825,3367.4,3366.7,0.2963]
[1732258539107,0.27644963,3367.3,3366.7,0.2963]
[1732258540105,1.6482825,3367.5,3366.8,0.2963]
[1732258540276,0.27629464,3367.4,3367.0,0.2963]
[1732258540602,0.8056,3367.7,3367.0,0.2963]
[1732258540603,1.6482825,3367.3,3367.0,0.2963]
[1732258540775,1.92457718,3367.3,3367.0,0.2963]
[1732258540981,1.6482825,3367.3,3367.0,0.2963]
[1732258541318,0.27626968,3367.2,3367.0,0.2963]
[1732258541604,1.6482825,3368.0,3367.1,1.1223]
[1732258541605,1.6482825,3367.5,3367.1,1.1223]
[1732258541807,0.27613227,3367.4,3367.1,1.1223]
[1732258543909,1.6482825,3367.3,3367.2,0.2963]
[1732258544408,1.6482825,3367.5,3367.2,0.2963]
[1732258544609,0.27615433,3367.4,3367.2,0.2963]
[1732258544814,1.6482825,3367.3,3367.2,0.2963]
[1732258545008,1.6482825,3367.4,3366.8,0.2963]
[1732258546606,1.6482825,3367.2,3366.8,0.2963]
[1732258548195,0.24673825,3367.4,3366.8,0.2963]
[1732258548403,1.6482825,3367.5,3366.8,0.2963]
[1732258548404,0.27608662,3367.3,3366.8,0.2963]
[1732258548680,2.4673825,3367.6,3366.8,0.2963]
[1732258548888,1.6482825,3367.3,3366.8,0.2963]
[1732258549213,0.27608941,3367.2,3366.8,0.2963]
[1732258549414,1.6482825,3367.3,3366.8,0.2963]
[1732258549598,0.27601186,3367.2,3366.8,0.2963]
[1732258551279,1.6482825,3367.3,3366.8,0.2963]
[1732258551479,0.2761361,3367.1,3366.8,0.2963]
[1732258551711,1.89502075,3367.3,3366.8,0.2963]
[1732258551917,0.27618564,3367.2,3366.8,0.2963]
[1732258555017,1.6482825,3367.0,3366.8,0.2963]
[1732258555181,0.27629564,3366.9,3366.5,0.2963]
[1732258556013,1.6482825,3367.0,3366.5,0.2963]
[1732258556371,0.27636137,3366.9,3366.5,0.2963]
[1732258557887,1.6482825,3367.0,3366.5,0.2963]
[1732258558093,0.27655278,3366.9,3366.5,0.2963]
[1732258558625,0.27655278,3367.2,3366.5,0.2963]
[1732258558929,0.27665769,3367.1,3366.5,0.2963]
[1732258559123,0.27665769,3367.2,3366.6,1.1244]
[1732258559324,0.27665769,3367.1,3366.6,1.1244]
[1732258559530,2.4673825,3367.6,3366.6,1.1244]
[1732258559699,0.27673671,3367.5,3366.6,1.1244]
[1732258559901,0.27673671,3367.4,3366.6,1.1244]
[1732258560107,0.27673671,3367.3,3366.6,1.1244]
[1732258560434,0.27673671,3367.2,3366.6,1.1244]
[1732258560624,0.27673671,3367.1,3366.6,1.1244]
[1732258560822,0.27673671,3367.0,3366.6,1.1244]
[1732258561039,0.27141208,3367.5,3366.6,1.1244]
[1732258561365,0.27690218,3367.4,3366.6,1.1244]
[1732258561541,0.27700931,3367.3,3366.6,1.1244]
[1732258561709,0.27701095,3367.2,3366.6,1.1244]
[1732258561900,0.27701095,3367.1,3366.6,1.1244]
[1732258562098,0.27701095,3367.0,3366.6,1.1244]
[1732258562299,0.27701095,3366.9,3366.6,1.1244]
[1732258562531,0.27700931,3367.3,3366.6,1.1244]
[1732258562745,0.27701737,3367.2,3366.6,1.1244]
[1732258562904,0.27701737,3367.1,3366.6,1.1244]
[1732258563104,0.27701737,3367.0,3366.6,1.1244]
[1732258563339,0.27700931,3367.3,3366.6,1.1244]
[1732258563340,0.27701737,3366.9,3366.6,1.1244]
[1732258563549,0.27700931,3367.3,3366.6,1.1244]
[1732258563760,0.2770464,3367.2,3366.6,1.1244]
[1732258563905,0.27707159,3367.1,3366.6,1.1244]
[1732258564110,0.27707159,3367.2,3366.6,1.1244]
[1732258564347,0.27707159,3367.1,3366.6,1.1244]
[1732258564551,0.27707159,3367.0,3366.6,1.1244]
[1732258564853,0.27707159,3366.9,3366.6,1.1244]
[1732258565003,0.27707159,3366.8,3366.6,1.1244]
[1732258565209,1.92529181,3367.3,3366.6,1.1244]
[1732258565520,0.27706476,3367.2,3366.6,1.1244]
[1732258565709,0.27706476,3367.1,3366.6,1.1244]
[1732258565912,0.27706476,3367.0,3366.6,1.1244]
[1732258566225,0.27706476,3366.9,3366.6,1.1244]
[1732258566410,0.27706476,3366.8,3366.6,1.1244]
[1732258566611,1.92272168,3367.3,3366.6,1.1244]
[1732258566922,0.27707067,3367.2,3366.6,1.1244]
[1732258567119,0.27707067,3367.1,3366.6,1.1244]
[1732258567323,0.27707067,3367.0,3366.6,1.1244]
[1732258567541,0.27707067,3366.9,3366.6,1.1244]
[1732258567744,0.27707067,3366.8,3366.6,1.1244]
[1732258567910,1.6482825,3367.3,3366.6,1.1244]
[1732258568112,0.27713496,3367.2,3366.6,1.1244]
[1732258568343,0.27713496,3367.1,3366.6,1.1244]
[1732258568653,0.27713496,3367.0,3366.6,1.1244]
[1732258568825,0.27713496,3366.9,3366.6,1.1244]
[1732258569027,0.27713496,3366.8,3366.6,1.1244]
[1732258569240,1.6482825,3367.3,3366.6,1.1244]
[1732258569443,0.27722037,3367.2,3366.6,1.1244]
[1732258569626,0.27722037,3367.1,3366.6,1.1244]
[1732258569822,0.27722037,3367.0,3366.6,1.1244]
[1732258570028,0.27722037,3366.9,3366.6,1.1244]
[1732258570335,1.6482825,3367.3,3366.6,1.1244]
[1732258570526,0.27722593,3367.2,3366.6,1.1244]
[1732258570730,0.27722593,3367.1,3366.6,1.1244]
[1732258570913,0.27722593,3367.0,3366.6,1.1244]
[1732258571115,0.27721832,3366.9,3366.6,1.1244]
[1732258571318,0.27721832,3366.8,3366.6,1.1244]
[1732258571516,0.8191,3367.6,3366.6,1.1244]
[1732258571517,1.6482825,3367.4,3366.6,1.1244]
[1732258571862,0.27721786,3367.3,3366.6,1.1244]
[1732258572060,0.27721786,3367.2,3366.6,1.1244]
[1732258572263,0.27721786,3367.1,3366.6,1.1244]
[1732258572459,0.27721786,3367.0,3366.6,1.1244]
[1732258572631,0.27721786,3366.9,3366.6,1.1244]
[1732258572818,1.6482825,3367.4,3366.6,1.1244]
[1732258572819,0.27721786,3366.8,3366.6,1.1244]
[1732258573015,1.6482825,3367.4,3366.6,1.1244]
[1732258573236,0.27723929,3367.3,3366.6,1.1244]
[1732258573550,0.27723929,3367.2,3366.6,1.1244]
[1732258573729,0.27723929,3367.1,3366.6,1.1244]
[1732258574054,0.27723929,3367.0,3366.6,1.1244]
[1732258574354,0.27723929,3366.9,3366.6,1.1244]
[1732258574655,0.27723929,3366.8,3366.6,1.1244]
[1732258574949,1.89502075,3367.4,3366.6,1.1244]
[1732258575158,0.27721381,3367.3,3366.6,1.1244]
[1732258575356,0.27721381,3367.2,3366.6,1.1244]
[1732258575561,0.27721381,3367.1,3366.6,1.1244]
[1732258575762,0.27721381,3367.0,3366.6,1.1244]
[1732258575965,0.27721381,3366.9,3366.6,1.1244]
[1732258576170,0.27721381,3366.8,3366.6,1.1244]
[1732258576461,0.27721381,3366.7,3366.6,1.1244]
[1732258576621,2.4506825,3367.1,3366.7,0.2963]
[1732258576825,1.6482825,3366.8,3366.7,0.2963]
[1732258577023,1.9255063,3366.8,3366.7,0.2963]
[1732258577222,0.2772238,3366.8,3366.7,0.2963]
[1732258577722,0.2772238,3366.8,3366.1,0.2963]
[1732258577945,0.2772238,3366.7,3366.1,0.2963]
[1732258578122,1.6482825,3367.0,3366.1,0.2963]
[1732258578342,0.27719756,3366.9,3366.1,0.2963]
[1732258578536,0.27719756,3366.8,3366.1,0.2963]
[1732258578736,0.27719756,3366.7,3366.1,0.2963]
[1732258578947,0.27719756,3366.6,3366.1,0.2963]
[1732258579146,0.27719756,3366.5,3366.1,0.2963]
[1732258579353,1.6482825,3367.0,3366.1,0.2963]
[1732258579550,0.8024,3366.5,3366.1,0.2963]
[1732258579765,1.92539512,3366.4,3366.1,0.2963]
[1732258579925,0.27711262,3366.3,3366.1,0.2963]
[1732258580122,0.27711262,3366.2,3365.6,0.2963]
[1732258580359,1.6482825,3366.4,3365.6,0.2963]
[1732258580563,0.27697405,3366.3,3365.6,0.2963]
[1732258581460,1.6482825,3366.4,3365.6,0.2963]
[1732258581641,0.27686126,3366.3,3365.6,0.2963]
[1732258582351,1.6482825,3366.4,3365.6,0.2963]
[1732258582769,0.27673505,3366.3,3365.6,0.2963]
[1732258583471,0.27673505,3366.3,3365.9,0.2963]
[1732258583784,0.8024,3366.7,3366.1,0.2963]
[1732258584089,1.6482825,3366.9,3366.1,0.2963]
[1732258584090,0.27670599,3366.6,3366.1,0.2963]
[1732258584239,0.27670599,3366.8,3366.1,0.2963]
[1732258584443,0.27670599,3366.7,3366.1,0.2963]
[1732258584640,0.27670599,3366.6,3366.1,0.2963]
[1732258584947,0.27670599,3366.5,3366.1,0.2963]
[1732258585155,0.27670599,3366.4,3366.1,0.2963]
[1732258585482,2.4506825,3366.9,3366.1,0.2963]
[1732258585641,1.6482825,3366.7,3366.1,0.2963]
[1732258585842,0.27671242,3366.6,3366.1,0.2963]
[1732258587242,0.27671242,3366.5,3366.1,0.2963]
[1732258587447,1.6482825,3366.8,3366.1,0.2963]
[1732258587738,0.27667984,3366.7,3366.1,0.2963]
[1732258588146,1.6482825,3366.6,3366.1,0.2963]
[1732258588380,0.27667984,3366.5,3366.1,0.2963]
[1732258588682,1.6482825,3366.6,3366.1,0.2963]
[1732258588857,0.27661985,3366.5,3366.1,0.2963]
[1732258589546,1.6482825,3366.6,3366.1,0.2963]
[1732258589744,0.27661897,3366.5,3366.1,0.2963]
[1732258589946,1.6482825,3366.6,3366.1,0.2963]
[1732258590155,0.27662378,3366.5,3366.1,0.2963]
[1732258590684,1.6482825,3366.8,3366.1,0.2963]
[1732258590890,0.27663095,3366.7,3366.1,0.2963]
[1732258591991,0.27663095,3366.7,3366.2,0.2963]
[1732258592292,1.6482825,3367.0,3366.6,0.2963]
[1732258592589,0.7689,3367.3,3366.6,0.2963]
[1732258592590,1.6482825,3366.8,3366.6,0.2963]
[1732258592788,0.46915382,3366.7,3366.6,0.2963]
[1732258593085,0.27665888,3366.7,3366.6,0.2963]
[1732258593852,1.6482825,3367.0,3366.6,0.2963]
[1732258594075,0.27669033,3366.9,3366.6,0.2963]
[1732258594384,0.27669033,3366.9,3366.4,0.2963]
[1732258594759,0.27669033,3366.9,3366.7,0.2963]
[1732258595952,0.27683721,3366.8,3366.7,0.2963]
[1732258597284,0.27683721,3366.9,3366.7,0.2963]
[1732258599568,0.27683721,3367.1,3366.8,1.1276]
[1732258599770,0.27690643,3367.0,3366.8,1.1276]
[1732258599970,0.27690643,3366.9,3366.8,1.1276]
[1732258600906,1.04580643,3366.9,3366.6,20.0]
[1732258601101,2.4171825,3366.7,3366.6,19.7038]
[1732258601312,3.24408893,3366.7,3366.6,19.4076]
[1732258601607,3.77674979,3366.7,3366.6,19.4076]
[1732258603505,3.49984336,3366.7,3366.6,19.4076]
[1732258603798,3.77647006,3366.7,3366.6,19.4076]
[1732258606077,11.39501256,3366.7,3366.6,8.28502512]
[1732258606601,11.39501256,3366.7,3366.6,4.95431732]
[1732258606913,11.39501256,3366.7,3366.6,4.02760371]
[1732258607309,8.42475256,3366.7,3366.6,4.02760371]
[1732258607514,2.12818756,3366.7,3366.6,4.02760371]
[1732258607712,3.2438092,3366.7,3366.6,4.02760371]
[1732258607892,6.2438092,3366.7,3366.6,4.02760371]
[1732258608578,6.63274754,3366.7,3366.6,4.02760371]
[1732258608949,8.28103004,3366.7,3366.6,4.02760371]
[1732258609415,6.63274754,3366.7,3366.6,4.02760371]
[1732258609710,7.46085054,3366.7,3366.6,4.02760371]
[1732258610977,7.46085054,3366.7,3366.6,4.12760371]
[1732258615403,7.0719122,3366.7,3366.6,4.12760371]
[1732258619741,5.4236297,3366.7,3366.6,4.12760371]
[1732258619911,1.5955267,3366.7,3366.6,4.12760371]
[1732258620238,3.2438092,3366.7,3366.6,4.12760371]
[1732258621406,2.4749092,3366.7,3366.6,4.12760371]
[1732258621608,1.9249092,3366.7,3366.6,4.12760371]
[1732258621829,0.2766267,3366.7,3366.6,4.95640371]
[1732258622033,1.6482825,3367.1,3366.6,5.74834408]
[1732258622305,0.27587167,3367.0,3366.6,5.74834408]
[1732258623426,1.6482825,3366.9,3366.6,5.74834408]
[1732258623605,1.6482825,3366.9,3366.6,5.25270371]
[1732258623805,1.6482825,3366.7,3366.6,4.42390371]
[1732258624301,1.92417143,3366.7,3366.6,4.42390371]
[1732258625047,1.92417143,3366.7,3366.6,4.12760371]
[1732258625351,2.35739682,3366.7,3366.6,4.12760371]
[1732258625546,3.11719682,3366.7,3366.6,4.12760371]
[1732258625721,6.11719682,3366.7,3366.6,4.12760371]
[1732258626947,5.84130789,3366.7,3366.6,4.12760371]
[1732258627109,6.11726663,3366.7,3366.6,4.12760371]
[1732258628963,5.35746663,3366.7,3366.6,4.12760371]
[1732258629249,2.35746663,3366.7,3366.6,4.12760371]
[1732258629418,2.35746663,3366.7,3366.6,4.42390371]
[1732258630449,2.3581,3366.7,3366.6,4.42390371]
[1732258631753,0.27659211,3366.7,3366.6,4.42390371]
[1732258631909,1.6482825,3366.7,3366.6,4.42390371]
[1732258632111,1.92487461,3366.7,3366.6,4.42390371]
[1732258632313,0.27659211,3366.7,3366.6,4.42390371]
[1732258632609,1.92487461,3366.7,3366.6,4.42390371]
[1732258632840,2.28219032,3366.7,3366.6,4.42390371]
[1732258633328,1.92487461,3366.7,3366.6,4.42390371]
[1732258638722,0.27659211,3366.7,3366.6,4.42390371]
[1732258639018,0.27659211,3366.7,3366.6,5.21510371]
[1732258641536,1.92487461,3366.7,3366.6,5.21510371]
[1732258642069,1.92487461,3366.7,3366.6,4.42390371]
[1732258642231,2.11736207,3366.7,3366.6,4.42390371]
[1732258643879,0.27659211,3366.7,3366.6,4.42390371]
[1732258644450,0.27659211,3366.7,3366.6,5.21510371]
[1732258644650,1.6482825,3367.3,3366.6,4.42390371]
[1732258644894,0.27686712,3367.2,3367.0,0.2963]
[1732258645073,1.6482825,3367.1,3367.0,0.2963]
[1732258645272,1.92514962,3367.1,3367.0,0.2963]
[1732258645472,1.92511486,3367.1,3367.0,0.2963]
[1732258646188,0.27683236,3367.1,3367.0,0.2963]
[1732258646551,0.27683236,3367.3,3367.0,0.2963]
[1732258646880,1.92511486,3367.2,3367.0,0.2963]
[1732258647081,0.27683236,3367.1,3367.0,0.2963]
[1732258647552,0.27683236,3367.1,3366.7,0.2963]
[1732258647755,1.6482825,3367.0,3366.7,0.2963]
[1732258648069,0.27683236,3366.9,3366.7,0.2963]
[1732258649176,1.6482825,3366.8,3366.7,0.2963]
[1732258649349,1.92511486,3366.8,3366.7,0.2963]
[1732258651692,0.27683236,3366.8,3366.7,0.2963]
[1732258652204,0.27683236,3366.9,3366.7,0.2963]
[1732258652387,0.27683236,3366.8,3366.7,0.2963]
[1732258652914,1.6482825,3367.0,3366.7,0.2963]
[1732258653118,0.27711654,3366.9,3366.7,0.2963]
[1732258654049,0.27711654,3366.9,3366.8,1.1009]
[1732258655477,1.6482825,3367.0,3366.8,1.1009]
[1732258655699,0.27710916,3366.9,3366.8,1.1009]
[1732258655923,1.6482825,3367.0,3366.8,1.1009]
[1732258656090,0.27710387,3366.9,3366.8,1.1009]
[1732258656494,0.27710387,3367.1,3366.8,1.1009]
[1732258656699,0.27710387,3367.0,3366.8,1.1009]
[1732258656901,0.27710387,3366.9,3366.8,1.1009]
[1732258657100,1.6482825,3367.4,3366.8,1.1009]
[1732258657424,0.27719903,3367.3,3366.8,1.62375037]
[1732258657629,0.27719903,3367.3,3366.8,1.1009]
[1732258657833,0.27719903,3367.3,3366.6,4.12760371]
[1732258657834,0.27719903,3367.3,3366.9,1.1009]
[1732258658033,1.6482825,3367.6,3366.9,1.1009]
[1732258658034,0.27719903,3367.2,3366.9,1.1009]
[1732258658234,1.6482825,3367.6,3367.1,0.2963]
[1732258658400,1.6482825,3367.2,3366.7,0.2963]
[1732258658601,1.6482825,3366.9,3366.7,0.2963]
[1732258658801,1.6482825,3366.9,3366.6,4.12760371]
[1732258658802,0.8007,3366.7,3366.6,4.12760371]
[1732258659003,2.72614992,3366.7,3366.6,4.12760371]
[1732258659441,2.72614992,3366.7,3366.6,4.42390371]
[1732258659632,3.16359316,3366.7,3366.6,4.42390371]
[1732258660703,1.51531066,3366.7,3366.6,4.42390371]
[1732258662248,1.51531066,3366.7,3366.6,4.12760371]
[1732258662543,0.43744324,3366.7,3366.6,4.12760371]
[1732258662712,1.49895166,3366.7,3366.6,4.12760371]
[1732258664248,0.71445166,3366.7,3366.6,4.12760371]
[1732258666352,3.43744324,3366.7,3366.6,4.12760371]
[1732258666705,3.71437382,3366.7,3366.6,4.12760371]
[1732258666938,0.27693058,3366.7,3366.6,4.12760371]
[1732258667138,0.7845,3367.3,3366.7,0.2963]
[1732258667304,0.27697561,3367.2,3366.7,0.2963]
[1732258667506,0.27697561,3367.1,3366.7,0.2963]
[1732258667806,0.27697561,3367.0,3366.7,0.2963]
[1732258668440,3.48325412,3367.1,3366.7,0.2963]
[1732258668441,0.27697561,3366.9,3366.7,0.2963]
[1732258668607,0.27697561,3366.8,3366.7,0.2963]
[1732258669924,3.48325412,3367.1,3366.7,0.2963]
[1732258670126,0.27687756,3366.8,3366.7,0.2963]
[1732258670739,0.27687756,3367.0,3366.7,0.2963]
[1732258671057,0.27687756,3366.9,3366.7,0.2963]
[1732258671222,0.27687756,3367.0,3366.7,0.2963]
[1732258671427,0.27687756,3366.9,3366.7,0.2963]
[1732258671762,0.7845,3366.8,3366.7,0.2963]
[1732258671912,4.54463168,3366.8,3366.6,4.12760371]
[1732258672115,1.32401827,3366.7,3366.6,4.12760371]
[1732258677030,1.04714071,3366.7,3366.6,4.12760371]
[1732258677403,1.32394948,3366.7,3366.6,4.12760371]
[1732258680258,1.32394948,3366.7,3366.6,4.42390371]
[1732258680480,1.32394948,3366.7,3366.6,4.12760371]
[1732258680654,5.10850084,3366.7,3366.6,4.12760371]
[1732258680853,8.07876084,3366.7,3366.6,4.12760371]
[1732258682874,8.07876084,3366.7,3366.6,3.2229902]
[1732258683079,8.07866887,3366.7,3366.6,1.61671907]
[1732258683291,8.07866887,3366.7,3366.6,1.14621907]
[1732258684190,5.10840887,3366.7,3366.6,1.14621907]
[1732258684482,8.04166299,3366.7,3366.6,1.14621907]
[1732258684698,11.56192299,3366.7,3366.6,1.14621907]
[1732258684844,11.56192299,3366.7,3366.6,0.99494907]
[1732258685157,11.28515483,3366.7,3366.6,0.99494907]
[1732258686260,11.56197851,3366.7,3366.6,0.99494907]
[1732258686465,11.28515483,3366.7,3366.6,0.99494907]
[1732258686800,11.56198425,3366.7,3366.6,0.99494907]
[1732258687753,8.59172425,3366.7,3366.6,0.99494907]
[1732258687957,2.10847013,3366.7,3366.6,0.94494907]
[1732258688162,8.59172425,3366.7,3366.6,0.94494907]
[1732258689299,1.55847013,3366.7,3366.6,0.94494907]
[1732258689484,4.06132942,3366.7,3366.6,0.94494907]
[1732258689693,4.06162164,3366.7,3366.6,0.94494907]
[1732258689862,4.54487576,3366.7,3366.6,0.94494907]
[1732258690067,7.54487576,3366.7,3366.6,0.94494907]
[1732258691397,6.76037576,3366.7,3366.6,0.94494907]
[1732258693269,7.55334802,3366.7,3366.6,0.94494907]
[1732258695495,8.90304802,3366.7,3366.6,0.94494907]
[1732258697983,8.90281106,3366.7,3366.6,0.94494907]
[1732258698370,11.87307106,3366.7,3366.6,0.94494907]
[1732258698825,11.87307106,3366.7,3366.6,0.18214907]
[1732258699147,2.97058,3366.4,3365.7,0.2963]
[1732258699320,3.48325412,3366.2,3365.7,0.2963]
[1732258699477,0.27688468,3366.1,3365.7,0.2963]
[1732258699803,0.27688468,3366.0,3365.7,0.2963]
[1732258700107,0.27688468,3365.9,3365.7,0.2963]
[1732258700291,0.27688468,3366.2,3365.7,0.2963]
[1732258700505,0.27688468,3366.1,3365.7,0.2963]
[1732258700689,0.27688468,3366.0,3365.7,0.2963]
[1732258700891,0.27700522,3365.9,3365.7,0.2963]
[1732258701087,0.27700522,3366.2,3365.7,0.2963]
[1732258701319,0.27700522,3366.1,3365.7,0.2963]
[1732258701519,0.27700522,3366.0,3365.7,0.2963]
[1732258701684,0.27700522,3365.9,3365.7,0.2963]
[1732258701890,0.27700522,3365.8,3365.7,0.2963]
[1732258702274,0.27700522,3366.2,3365.7,0.2963]
[1732258702480,0.27700522,3366.1,3365.7,0.2963]